lending/lending_fUSD_20240621
["ID","MTS","AMOUNT","RATE_DAILY","PERIOD"]
[330107323,1718993432640,-726.13,0.00020452,2]
[330107324,1718993432652,-150.29,0.00020868,2]
[330107325,1718993432666,-1250.0,0.00021,2]
[330107326,1718993432678,-155.0,0.00021643,2]
[330107327,1718993432691,-155.0,0.00021643,2]
[330107328,1718993432703,-386.72,0.00021644,2]
[330107330,1718993432713,-1088.9379251,0.00021799,2]
[330107338,1718993438084,-88.95610617,0.00021799,2]
[330107339,1718993438096,-5000.0,0.00021805,2]
[330107340,1718993438107,-1000.0,0.00021807,2]
[330107341,1718993438118,-421.28017113,0.00021816,2]
[330107342,1718993438130,-715.47154282,0.00021816,2]
[330107343,1718993438141,-1627.6013862,0.00021816,2]
[330107344,1718993438154,-119.7909658,0.00021817,2]
[330107346,1718993438169,-3587.03578493,0.00021817,2]
[330107347,1718993438184,-827.75998797,0.00021817,2]
[330107348,1718993438198,-465.03184456,0.00021817,2]
[330107350,1718993438537,-347.74921905,0.00021817,2]
[330107353,1718993438550,-425.12106461,0.00021817,2]
[330107356,1718993438564,-674.69758389,0.00021817,2]
[330107361,1718993438578,-3396.04284698,0.00021817,2]
[330107364,1718993438592,-2022.7165844,0.00021817,2]
[330107448,1718993440638,-182.26152154,0.00021816,2]
[330107449,1718993440648,-493.2300161,0.00021817,2]
[330107450,1718993440667,-9920.5,0.00021817,2]
[330107451,1718993440678,-505.3,0.00021817,2]
[330107452,1718993440690,-425.80000015,0.00021817,2]
[330107453,1718993440701,-16016.49702183,0.00021817,2]
[330107454,1718993440713,-1529.12617148,0.00021817,2]
[330107455,1718993440725,-3015.24475082,0.00021817,2]
[330107456,1718993440736,-397.63820964,0.00021817,2]
[330107457,1718993440749,-43199.80326188,0.00021817,2]
[330107458,1718993440761,-755.58943814,0.00021817,2]
[330107459,1718993440773,-1369.5368522,0.00021817,2]
[330107460,1718993440816,-5873.05415006,0.00021817,2]
[330107461,1718993440829,-743.49714551,0.00021817,2]
[330107462,1718993440839,-182.08348635,0.00021817,5]
[330107463,1718993440850,-171.11148442,0.00021817,2]
[330107464,1718993440860,-449.69371356,0.00021817,2]
[330107465,1718993440870,-135.74033251,0.00021817,2]
[330107466,1718993440882,-122.38631468,0.00021817,2]
[330107467,1718993440893,-2315.27928517,0.00021897,2]
[330107468,1718993440905,-1647.94110492,0.00021897,2]
[330107469,1718993440916,-201.43511982,0.00021898,2]
[330107470,1718993440926,-269.20894973,0.00021906,2]
[330107471,1718993440936,-15858.1239882,0.00021907,2]
[330107474,1718993443167,-993.56644484,0.00021907,2]
[330107475,1718993443179,-6246.50973598,0.00021907,2]
[330107476,1718993443191,-4258.21478186,0.00021907,2]
[330107477,1718993443465,-270.35155894,0.00021907,2]
[330107479,1718993443477,-550.0,0.00021907,2]
[330107480,1718993443490,-458.94774531,0.00021907,2]
[330107481,1718993443501,-269.47905598,0.00021907,2]
[330107484,1718993445950,-694.63,0.00021907,2]
[330107486,1718993445962,-631.34941224,0.00021907,2]
[330107487,1718993445974,-751.33678967,0.00021907,2]
[330107488,1718993446250,-281.92942,0.00021907,2]
[330107489,1718993446262,-40797.57416676,0.00021907,2]
[330107490,1718993446274,-2061.611112,0.00021907,2]
[330107491,1718993446285,-1938.14415443,0.00021907,2]
[330107492,1718993446297,-648.14925961,0.00021907,2]
[330107493,1718993446311,-6256.7537304,0.00021907,2]
[330107494,1718993446323,-500.0,0.00021907,2]
[330107495,1718993900008,215.03,0.00020143,30]
[330107499,1718994219203,159.37227851,0.000101,2]
[330107515,1718994412163,-690.96573665,0.00018198,2]
[330107516,1718994483058,-19.93426335,0.00018198,2]
[330107517,1718994483090,-150.56,0.0001891,2]
[330107518,1718994483122,-153.09,0.00019008,2]
[330107519,1718994483154,-150.0,0.00019121,2]
[330107520,1718994483185,-985.32848079,0.00019122,2]
[330107521,1718994483202,-19.93426335,0.00019122,2]
[330107522,1718994483223,-150.56,0.00019122,2]
[330107523,1718994483234,-153.09,0.00019122,2]
[330107524,1718994483250,-150.0,0.00019122,2]
[330107525,1718994483265,-3308.59024837,0.00019122,2]
[330107526,1718994483276,-161.05154285,0.00019525,2]
[330107527,1718994519130,241.65854131,0.000101,2]
[330107529,1718994558075,155.0,0.00012242,2]
[330107530,1718994592029,155.26088297,0.00012242,2]
[330107531,1718994593338,444.2618544,0.00012242,2]
[330107534,1718994632314,-1878.11084122,0.00018184,2]
[330107536,1718994632327,-949.29727586,0.00018184,2]
[330107538,1718994632337,-702.02,0.00018185,2]
[330107539,1718994632346,-2827.40811708,0.00018899,2]
[330107540,1718994632356,-169.48516651,0.00019525,2]
[330107541,1718994632365,-499.99,0.00019726,2]
[330107542,1718994632378,-184.27,0.00020016,2]
[330107543,1718994632387,-630.17239516,0.00020026,2]
[330107546,1718994632672,-1841.02372038,0.00020026,2]
[330107548,1718994632684,-12178.03130439,0.00020026,2]
[330107549,1718994632696,-420.62258007,0.00020026,2]
[330107550,1718994632711,-3105.79028967,0.00020039,2]
[330107551,1718994632720,-1227.05,0.0002004,2]
[330107552,1718994632730,-250.0,0.00020049,2]
[330107553,1718994632739,-250.0,0.0002005,2]
[330107554,1718994632748,-250.0,0.00020073,2]
[330107555,1718994632759,-1000.0,0.00020149,2]
[330107556,1718994632770,-2198.0801445,0.00020152,2]
[330107557,1718994632779,-150.29,0.00020153,2]
[330107558,1718994632789,-702.02,0.00020449,2]
[330107559,1718994632801,-295.26,0.00020587,2]
[330107560,1718994632812,-295.26,0.00020592,2]
[330107561,1718994632823,-295.26,0.00020598,2]
[330107562,1718994632832,-295.26,0.00020603,2]
[330107563,1718994632842,-295.26,0.00020608,2]
[330107564,1718994632852,-295.26,0.00020614,2]
[330107565,1718994632861,-295.26,0.00020619,2]
[330107566,1718994632870,-295.26,0.00020625,2]
[330107567,1718994632880,-295.26,0.0002063,2]
[330107568,1718994632890,-295.26,0.00020636,2]
[330107569,1718994632899,-295.26,0.00020641,2]
[330107570,1718994632908,-295.26,0.00020646,2]
[330107571,1718994632918,-295.26,0.00020652,2]
[330107572,1718994632928,-183.41796286,0.00020656,2]
[330107573,1718994632937,-295.26,0.00020657,2]
[330107574,1718994632947,-366.0285791,0.00020662,2]
[330107575,1718994632956,-295.26,0.00020663,2]
[330107576,1718994632965,-295.26,0.00020668,2]
[330107577,1718994632974,-1382.38375711,0.00020672,2]
[330107578,1718994632983,-523.92588046,0.00020673,2]
[330107579,1718994632993,-295.26,0.00020674,2]
[330107580,1718994633002,-160.19379685,0.00020679,2]
[330107581,1718994633014,-135.06620315,0.00020679,2]
[330107582,1718994633023,-134.03138333,0.00020684,2]
[330107583,1718994633035,-161.22861667,0.00020684,2]
[330107584,1718994633044,-231.11282461,0.0002069,2]
[330107585,1718994633055,-64.14717539,0.0002069,2]
[330107586,1718994633064,-167.56,0.00020851,2]
[330107587,1718994633074,-202.40067256,0.00020967,2]
[330107588,1718994633083,-378.479245,0.00020999,2]
[330107589,1718994633093,-1250.0,0.00021,2]
[330107590,1718994633103,-176.80257706,0.00021119,2]
[330107591,1718994633112,-1069.4164457,0.0002112,2]
[330107592,1718994633122,-3546.19388429,0.00021225,2]
[330107593,1718994633133,-3494.76952503,0.00021225,2]
[330107594,1718994633145,-2036.79760032,0.00021225,2]
[330107595,1718994633208,-922.23899036,0.00021225,2]
[330107596,1718994633218,-4479.5314661,0.00021225,2]
[330107597,1718994633229,-5520.4685339,0.00021225,2]
[330107598,1718994633239,-158.80388924,0.00021369,2]
[330107599,1718994633249,-1260.49399204,0.00021453,2]
[330107600,1718994633261,-2.27889567,0.00021453,2]
[330107601,1718994633271,-412.45466168,0.00021454,2]
[330107602,1718994633280,-384.09870792,0.000215,2]
[330107603,1718994633290,-3747.4186,0.0002159,2]
[330107604,1718994633299,-196.12854204,0.00021643,2]
[330107605,1718994633308,-196.12854204,0.00021643,2]
[330107606,1718994633318,-326.69444584,0.00021643,2]
[330107607,1718994633327,-154.97,0.00021644,2]
[330107608,1718994633336,-169.62,0.00021644,2]
[330107609,1718994633346,-2271.26682031,0.0002169,2]
[330107610,1718994633357,-30236.39682582,0.0002169,2]
[330107611,1718994633367,-1849.91081,0.0002169,2]
[330107612,1718994633378,-3000.2306,0.00021717,2]
[330107613,1718994633387,-6500.4668,0.00021717,2]
[330107614,1718994633396,-493.35375665,0.00021717,2]
[330107615,1718994633405,-155.0,0.00021789,2]
[330107616,1718994633414,-437.90975551,0.00021789,2]
[330107617,1718994633424,-1133.53475068,0.0002179,2]
[330107618,1718994633433,-158.21632429,0.00021791,2]
[330107619,1718994633442,-201.68987787,0.00021792,2]
[330107620,1718994633451,-529.48316259,0.00021792,2]
[330107621,1718994633461,-155.0,0.00021793,2]
[330107622,1718994633471,-327.03214884,0.00021805,2]
[330107623,1718994633480,-1000.0,0.00021807,2]
[330107624,1718994633489,-219.73,0.00021808,2]
[330107625,1718994633498,-368.29734209,0.00021816,2]
[330107626,1718994633507,-187.89378223,0.00021816,2]
[330107627,1718994633517,-482.76727412,0.00021816,2]
[330107628,1718994633526,-529.23291916,0.00021816,2]
[330107629,1718994633536,-9780.7824,0.00021817,2]
[330107630,1718994633545,-60022.519,0.00021817,2]
[330107631,1718994633554,-300.84937549,0.00021817,2]
[330107632,1718994633563,-169.18147185,0.00021817,2]
[330107633,1718994633573,-163.5767579,0.00021844,2]
[330107634,1718994633582,-493.35375664,0.00021845,2]
[330107635,1718994633591,-112104.238986,0.00021897,2]
[330107636,1718994633601,-1627.6013862,0.00021898,2]
[330107637,1718994633610,-155.0,0.00021903,2]
[330107638,1718994633622,-715.47154282,0.00021904,2]
[330107639,1718994633631,-139754.50569767,0.00021905,2]
[330107640,1718994633641,-43602.72185838,0.00021905,2]
[330107641,1718994633650,-295.73291685,0.00021906,2]
[330107642,1718994633660,-210.20765485,0.00021907,2]
[330107643,1718994633670,-252234.537718,0.00021907,2]
[330107644,1718994633679,-3568.39904765,0.00021916,2]
[330107645,1718994633689,-500.0,0.00021917,4]
[330107646,1718994633698,-412.11333348,0.00021917,4]
[330107647,1718994633708,-500.0,0.00021917,4]
[330107648,1718994633722,-500.0,0.00021917,4]
[330107649,1718994633732,-500.0,0.00021917,4]
[330107650,1718994633741,-500.0,0.00021917,4]
[330107651,1718994633750,-532.82,0.00021917,4]
[330107652,1718994633760,-500.0,0.00021917,4]
[330107653,1718994633769,-500.0,0.00021917,4]
[330107654,1718994633778,-500.0,0.00021917,4]
[330107655,1718994633788,-500.0,0.00021917,4]
[330107656,1718994633801,-500.0,0.00021917,4]
[330107657,1718994633811,-500.0,0.00021917,4]
[330107658,1718994633821,-446.55829507,0.00021917,4]
[330107659,1718994633831,-500.0,0.00021917,4]
[330107660,1718994633841,-500.0,0.00021917,4]
[330107661,1718994633851,-228.57639803,0.00021917,4]
[330107662,1718994633863,-500.0,0.00021917,4]
[330107663,1718994633874,-633.23,0.00021917,4]
[330107664,1718994633883,-500.0,0.00021917,4]
[330107665,1718994633893,-500.0,0.00021917,4]
[330107666,1718994633902,-500.0,0.00021917,4]
[330107667,1718994633911,-500.0,0.00021917,4]
[330107668,1718994633920,-500.0,0.00021917,4]
[330107669,1718994633929,-500.0,0.00021917,4]
[330107670,1718994633939,-500.0,0.00021917,4]
[330107671,1718994633948,-500.0,0.00021917,4]
[330107672,1718994633957,-500.0,0.00021917,4]
[330107673,1718994633966,-644.12,0.00021917,4]
[330107674,1718994633976,-500.0,0.00021917,4]
[330107675,1718994633985,-500.0,0.00021917,4]
[330107676,1718994633994,-500.0,0.00021917,4]
[330107677,1718994634004,-500.0,0.00021917,4]
[330107678,1718994634013,-500.0,0.00021917,4]
[330107679,1718994634023,-500.0,0.00021917,4]
[330107680,1718994634032,-636.71692825,0.00021917,4]
[330107681,1718994634041,-500.0,0.00021917,4]
[330107682,1718994634050,-500.0,0.00021917,4]
[330107683,1718994634060,-500.0,0.00021917,4]
[330107684,1718994634070,-959.31,0.00021917,4]
[330107685,1718994634079,-500.0,0.00021917,4]
[330107686,1718994634089,-500.0,0.00021917,4]
[330107687,1718994634098,-500.0,0.00021917,4]
[330107688,1718994634108,-500.0,0.00021917,4]
[330107689,1718994634117,-500.0,0.00021917,4]
[330107690,1718994634129,-500.0,0.00021917,4]
[330107691,1718994634138,-500.0,0.00021917,4]
[330107692,1718994634147,-500.0,0.00021917,4]
[330107693,1718994634156,-500.0,0.00021917,4]
[330107694,1718994634165,-500.0,0.00021917,4]
[330107695,1718994634174,-500.0,0.00021917,4]
[330107696,1718994634184,-500.0,0.00021917,4]
[330107697,1718994634193,-500.0,0.00021917,4]
[330107698,1718994634203,-500.0,0.00021917,4]
[330107699,1718994634212,-580.05,0.00021917,4]
[330107700,1718994634222,-500.0,0.00021917,4]
[330107701,1718994634231,-500.0,0.00021917,4]
[330107702,1718994634241,-500.0,0.00021917,4]
[330107703,1718994634251,-500.0,0.00021917,4]
[330107704,1718994634260,-500.0,0.00021917,4]
[330107705,1718994634269,-500.0,0.00021917,4]
[330107706,1718994634278,-500.0,0.00021917,4]
[330107707,1718994634287,-500.0,0.00021917,4]
[330107708,1718994634297,-500.0,0.00021917,4]
[330107709,1718994634306,-500.0,0.00021917,4]
[330107710,1718994634315,-500.0,0.00021917,4]
[330107711,1718994634325,-500.0,0.00021917,4]
[330107712,1718994634334,-500.0,0.00021917,4]
[330107713,1718994634344,-500.0,0.00021917,4]
[330107714,1718994634353,-500.0,0.00021917,4]
[330107715,1718994634362,-337.24,0.00021917,4]
[330107716,1718994634372,-500.0,0.00021917,4]
[330107717,1718994634382,-500.0,0.00021917,4]
[330107718,1718994634391,-500.0,0.00021917,4]
[330107719,1718994634400,-500.0,0.00021917,4]
[330107720,1718994634409,-500.0,0.00021917,4]
[330107721,1718994634418,-500.0,0.00021917,4]
[330107722,1718994634427,-500.0,0.00021917,4]
[330107723,1718994634436,-500.0,0.00021917,4]
[330107724,1718994634446,-500.0,0.00021917,4]
[330107725,1718994634456,-500.0,0.00021917,4]
[330107726,1718994634465,-500.0,0.00021917,4]
[330107727,1718994634474,-500.0,0.00021917,4]
[330107728,1718994634484,-500.0,0.00021917,4]
[330107729,1718994634493,-500.0,0.00021917,4]
[330107730,1718994634503,-500.0,0.00021917,4]
[330107731,1718994634514,-500.0,0.00021917,4]
[330107732,1718994634523,-500.0,0.00021917,4]
[330107733,1718994634533,-500.0,0.00021917,4]
[330107734,1718994634542,-500.0,0.00021917,4]
[330107735,1718994634552,-500.0,0.00021917,4]
[330107736,1718994634561,-500.0,0.00021917,4]
[330107737,1718994634570,-500.0,0.00021917,4]
[330107738,1718994634580,-590.79,0.00021917,4]
[330107739,1718994634588,-500.0,0.00021917,4]
[330107740,1718994634598,-540.71,0.00021917,4]
[330107741,1718994634607,-500.0,0.00021917,4]
[330107742,1718994634617,-500.0,0.00021917,4]
[330107743,1718994634629,-500.0,0.00021917,4]
[330107744,1718994634638,-500.0,0.00021917,4]
[330107745,1718994634648,-500.0,0.00021917,4]
[330107746,1718994634658,-500.0,0.00021917,4]
[330107747,1718994634667,-500.0,0.00021917,4]
[330107748,1718994634676,-500.0,0.00021917,4]
[330107749,1718994634686,-500.0,0.00021917,4]
[330107750,1718994634696,-500.0,0.00021917,4]
[330107751,1718994634709,-500.0,0.00021917,4]
[330107752,1718994634718,-500.0,0.00021917,4]
[330107753,1718994634727,-500.0,0.00021917,4]
[330107754,1718994634736,-500.0,0.00021917,4]
[330107755,1718994634747,-1043.18,0.00021917,4]
[330107756,1718994634755,-500.0,0.00021917,4]
[330107757,1718994634765,-500.0,0.00021917,4]
[330107758,1718994634775,-500.0,0.00021917,4]
[330107759,1718994634784,-500.0,0.00021917,4]
[330107760,1718994634797,-217.32,0.00021917,4]
[330107761,1718994634807,-500.0,0.00021917,4]
[330107762,1718994634816,-500.0,0.00021917,4]
[330107763,1718994634826,-252.54,0.00021917,4]
[330107764,1718994634835,-308.8810939,0.00021917,4]
[330107765,1718994634844,-500.0,0.00021917,4]
[330107766,1718994634853,-500.0,0.00021917,4]
[330107767,1718994634862,-500.0,0.00021917,4]
[330107768,1718994634874,-484.53,0.00021917,4]
[330107769,1718994634884,-500.0,0.00021917,4]
[330107770,1718994634897,-500.0,0.00021917,4]
[330107771,1718994634906,-500.0,0.00021917,4]
[330107772,1718994634915,-176.25,0.00021917,4]
[330107773,1718994634924,-500.0,0.00021917,4]
[330107774,1718994634933,-500.0,0.00021917,4]
[330107775,1718994634943,-523.59,0.00021917,4]
[330107776,1718994634953,-500.73,0.00021917,4]
[330107777,1718994634962,-500.0,0.00021917,4]
[330107778,1718994634971,-500.0,0.00021917,4]
[330107779,1718994634980,-500.0,0.00021917,4]
[330107780,1718994634989,-500.0,0.00021917,4]
[330107781,1718994634998,-500.0,0.00021917,4]
[330107782,1718994635008,-500.0,0.00021917,4]
[330107783,1718994635018,-500.0,0.00021917,4]
[330107784,1718994635027,-500.0,0.00021917,4]
[330107785,1718994635036,-500.0,0.00021917,4]
[330107786,1718994635046,-304.90059993,0.00021917,4]
[330107787,1718994635056,-500.0,0.00021917,4]
[330107788,1718994635065,-500.0,0.00021917,4]
[330107789,1718994635076,-500.0,0.00021917,4]
[330107790,1718994635085,-503.82,0.00021917,4]
[330107791,1718994635095,-500.0,0.00021917,4]
[330107792,1718994635105,-500.0,0.00021917,4]
[330107793,1718994635115,-500.0,0.00021917,4]
[330107794,1718994635132,-500.0,0.00021917,4]
[330107795,1718994635142,-500.0,0.00021917,4]
[330107796,1718994635151,-376.71,0.00021917,4]
[330107797,1718994635160,-500.0,0.00021917,4]
[330107798,1718994635169,-1181.67,0.00021917,4]
[330107799,1718994635178,-500.0,0.00021917,4]
[330107800,1718994635187,-500.0,0.00021917,4]
[330107801,1718994635196,-500.0,0.00021917,4]
[330107802,1718994635205,-500.0,0.00021917,4]
[330107803,1718994635215,-500.0,0.00021917,4]
[330107804,1718994635224,-500.0,0.00021917,4]
[330107805,1718994635233,-503.83305057,0.00021917,4]
[330107806,1718994635242,-500.0,0.00021917,4]
[330107807,1718994635251,-500.0,0.00021917,4]
[330107808,1718994635261,-500.0,0.00021917,4]
[330107809,1718994635270,-500.0,0.00021917,8]
[330107810,1718994635280,-500.0,0.00021917,4]
[330107811,1718994635289,-500.0,0.00021917,4]
[330107812,1718994635299,-500.0,0.00021917,4]
[330107813,1718994635308,-607.66,0.00021917,4]
[330107814,1718994635317,-500.0,0.00021917,4]
[330107815,1718994635327,-500.0,0.00021917,4]
[330107816,1718994635337,-500.0,0.00021917,4]
[330107817,1718994635346,-500.0,0.00021917,4]
[330107818,1718994635356,-500.0,0.00021917,4]
[330107819,1718994635366,-500.0,0.00021917,4]
[330107820,1718994635386,-500.0,0.00021917,4]
[330107821,1718994635395,-500.0,0.00021917,4]
[330107822,1718994635405,-500.0,0.00021917,4]
[330107823,1718994635414,-500.0,0.00021917,4]
[330107824,1718994635423,-500.0,0.00021917,4]
[330107825,1718994635432,-500.0,0.00021917,4]
[330107826,1718994635442,-567.9,0.00021917,4]
[330107827,1718994635452,-594.76,0.00021917,4]
[330107828,1718994635462,-500.0,0.00021917,4]
[330107829,1718994635471,-500.0,0.00021917,4]
[330107830,1718994635481,-500.0,0.00021917,4]
[330107831,1718994635491,-500.0,0.00021917,4]
[330107832,1718994635500,-500.0,0.00021917,4]
[330107833,1718994635509,-897.75,0.00021917,4]
[330107834,1718994635731,-500.0,0.00021917,4]
[330107835,1718994635740,-500.0,0.00021917,4]
[330107836,1718994635750,-500.0,0.00021917,4]
[330107837,1718994635762,-500.0,0.00021917,4]
[330107838,1718994635771,-500.0,0.00021917,4]
[330107839,1718994635781,-500.0,0.00021917,4]
[330107840,1718994635790,-500.0,0.00021917,4]
[330107841,1718994635803,-500.0,0.00021917,4]
[330107842,1718994635813,-500.0,0.00021917,4]
[330107843,1718994635822,-500.0,0.00021917,4]
[330107844,1718994635832,-500.0,0.00021917,4]
[330107845,1718994635842,-500.0,0.00021917,4]
[330107846,1718994635851,-500.0,0.00021917,4]
[330107847,1718994635861,-500.0,0.00021917,4]
[330107848,1718994635875,-500.0,0.00021917,4]
[330107849,1718994635884,-703.22,0.00021917,4]
[330107850,1718994635894,-592.98,0.00021917,4]
[330107851,1718994635903,-500.0,0.00021917,4]
[330107852,1718994635912,-500.0,0.00021917,4]
[330107853,1718994635921,-500.0,0.00021917,4]
[330107854,1718994635930,-500.0,0.00021917,4]
[330107855,1718994635939,-500.0,0.00021917,4]
[330107856,1718994635949,-500.0,0.00021917,4]
[330107857,1718994635958,-538.76,0.00021917,4]
[330107858,1718994635967,-500.0,0.00021917,4]
[330107859,1718994635976,-500.0,0.00021917,4]
[330107860,1718994635985,-500.0,0.00021917,4]
[330107861,1718994635995,-500.0,0.00021917,4]
[330107862,1718994636005,-500.0,0.00021917,4]
[330107863,1718994636014,-500.0,0.00021917,4]
[330107864,1718994636023,-500.0,0.00021917,4]
[330107865,1718994636033,-530.29,0.00021917,4]
[330107866,1718994636042,-500.0,0.00021917,4]
[330107867,1718994636051,-500.0,0.00021917,4]
[330107868,1718994636061,-500.0,0.00021917,4]
[330107869,1718994636072,-500.0,0.00021917,4]
[330107870,1718994636082,-500.0,0.00021917,4]
[330107871,1718994636091,-500.0,0.00021917,4]
[330107872,1718994636101,-500.0,0.00021917,4]
[330107873,1718994636110,-500.0,0.00021917,4]
[330107874,1718994636120,-500.0,0.00021917,4]
[330107875,1718994636131,-500.0,0.00021917,4]
[330107876,1718994636141,-500.0,0.00021917,4]
[330107877,1718994636150,-500.0,0.00021917,4]
[330107878,1718994636160,-500.0,0.00021917,4]
[330107879,1718994636169,-500.0,0.00021917,4]
[330107880,1718994636178,-500.0,0.00021917,4]
[330107881,1718994636187,-500.0,0.00021917,4]
[330107882,1718994636196,-500.0,0.00021917,4]
[330107883,1718994636206,-500.0,0.00021917,4]
[330107884,1718994636215,-500.0,0.00021917,4]
[330107885,1718994636224,-500.0,0.00021917,4]
[330107886,1718994636233,-521.55756015,0.00021917,4]
[330107887,1718994636243,-500.0,0.00021917,4]
[330107888,1718994636252,-500.0,0.00021917,4]
[330107889,1718994636262,-647.68,0.00021917,4]
[330107890,1718994636271,-500.0,0.00021917,4]
[330107891,1718994636280,-500.0,0.00021917,4]
[330107892,1718994636289,-500.0,0.00021917,4]
[330107893,1718994636299,-500.0,0.00021917,4]
[330107894,1718994636308,-500.0,0.00021917,4]
[330107895,1718994636318,-500.0,0.00021917,4]
[330107896,1718994636328,-500.0,0.00021917,4]
[330107897,1718994636338,-500.0,0.00021917,4]
[330107898,1718994636347,-500.0,0.00021917,4]
[330107899,1718994636357,-221.82,0.00021917,7]
[330107900,1718994636366,-500.0,0.00021917,4]
[330107901,1718994636378,-638.08,0.00021917,4]
[330107902,1718994636387,-500.0,0.00021917,4]
[330107903,1718994636396,-500.0,0.00021917,4]
[330107904,1718994636405,-500.0,0.00021917,4]
[330107905,1718994636414,-500.0,0.00021917,4]
[330107906,1718994636423,-531.45,0.00021917,4]
[330107907,1718994636432,-500.0,0.00021917,4]
[330107908,1718994636441,-683.18,0.00021917,4]
[330107909,1718994636450,-889.86,0.00021917,4]
[330107910,1718994636459,-500.0,0.00021917,4]
[330107911,1718994636468,-500.0,0.00021917,4]
[330107912,1718994636478,-500.0,0.00021917,4]
[330107913,1718994636488,-500.0,0.00021917,4]
[330107914,1718994636499,-500.0,0.00021917,4]
[330107915,1718994636508,-500.0,0.00021917,4]
[330107916,1718994636517,-500.0,0.00021917,4]
[330107917,1718994636527,-500.0,0.00021917,4]
[330107918,1718994636536,-1156.68,0.00021917,4]
[330107919,1718994636546,-516.76,0.00021917,4]
[330107920,1718994636555,-500.0,0.00021917,4]
[330107921,1718994636565,-500.0,0.00021917,4]
[330107922,1718994636576,-500.0,0.00021917,4]
[330107923,1718994636585,-500.0,0.00021917,4]
[330107924,1718994636595,-500.0,0.00021917,4]
[330107925,1718994636606,-659.15,0.00021917,4]
[330107926,1718994636617,-910.8,0.00021917,4]
[330107927,1718994636629,-500.0,0.00021917,4]
[330107928,1718994636638,-1149.51,0.00021917,4]
[330107929,1718994636647,-500.0,0.00021917,4]
[330107930,1718994636656,-500.0,0.00021917,4]
[330107931,1718994636666,-500.0,0.00021917,4]
[330107932,1718994636676,-500.0,0.00021917,4]
[330107933,1718994636688,-500.0,0.00021917,4]
[330107934,1718994636697,-500.0,0.00021917,4]
[330107935,1718994636711,-500.0,0.00021917,4]
[330107936,1718994636724,-500.0,0.00021917,4]
[330107937,1718994636733,-500.0,0.00021917,4]
[330107938,1718994636744,-500.0,0.00021917,4]
[330107939,1718994636756,-500.0,0.00021917,4]
[330107940,1718994636766,-500.0,0.00021917,4]
[330107941,1718994636777,-500.0,0.00021917,4]
[330107942,1718994636787,-500.0,0.00021917,4]
[330107943,1718994636800,-500.0,0.00021917,4]
[330107944,1718994636811,-500.0,0.00021917,4]
[330107945,1718994636821,-1860.05,0.00021917,4]
[330107946,1718994636830,-500.0,0.00021917,4]
[330107947,1718994636839,-500.0,0.00021917,4]
[330107948,1718994636848,-624.96,0.00021917,4]
[330107949,1718994636857,-587.32,0.00021917,4]
[330107950,1718994636867,-500.0,0.00021917,4]
[330107951,1718994636878,-500.0,0.00021917,4]
[330107952,1718994636887,-500.0,0.00021917,4]
[330107953,1718994636896,-544.17,0.00021917,4]
[330107954,1718994636905,-245.76,0.00021917,4]
[330107955,1718994636915,-500.0,0.00021917,4]
[330107956,1718994636924,-500.0,0.00021917,4]
[330107957,1718994636933,-1514.55,0.00021917,4]